Cogmind - Beta 17.1 @@@ ROGUE MODE // 2026.08.31 @ 14:38:08 Player: 7604 Result: Destroyed by Y-45 Defender with Beam Rifle Performance ------------- Evolutions (2) 1000 Regions Visited (6) 1200 Robots Destroyed (83) 415 Value Destroyed (2617) 2617 Prototype IDs (30) 600 Alien Tech Used (0) 0 Bonus (15659) 15659 TOTAL SCORE: 21491 Bonus ------- High Alert Combat Kills 77 Follower Combat Kills 192 Prayed to X0-1V1 5000 Major X0-1V1 Interference 10450 Friendly Fire -60 Cogmind --------- Core Integrity 0/550 Matter 477/500 Energy 280/280 System Corruption 12% Temperature Cool (9) Movement Walking (183) Ox1 Location -8/Recycling Parts ------- > --- POWER (1) -------- Heavy Ion Engine > --- PROPULSION (4) --- Carbon-fiber Leg VSS Leg (fused) VSS Leg > --- UTILITY (4) ------ Medium Storage Unit Advanced Visual Processing Unit Reactive Plating Reactive Plating > --- WEAPON (2) ------- Enhanced Autogun Rocket Launcher > --- INVENTORY (12) --- Improved Ion Engine Cargo Legs Structural Scanner Heavy Particle Gun Advanced Beam Rifle Advanced Beam Rifle Improved Assault Rifle Enhanced Autogun Scatter Rocket Array Peak State ------------ > --- POWER ------------ Improved Ion Engine > --- PROPULSION ------- Carbon-fiber Leg VSS Leg VSS Leg VSS Leg > --- UTILITY ---------- Improved Heat Sink Medium Storage Unit Remote Shield X0-1V1's Piety Tracker > --- WEAPON ----------- Scatter Rocket Array Scimitar of Distortion > --- INVENTORY -------- Improved Ion Engine Aluminum Leg VSS Leg VSS Leg Cargo Legs Improved VTOL Module Cooled VTOL Module Heavy Laser Rocket Launcher [Rating: 52] Favorites ----------- Power Light Ion Engine Engine Light Ion Engine Propulsion Light Treads Treads Light Treads Leg VSS Leg Hover Unit Cooled Airjet Flight Unit Cooled VTOL Module Utility Seismic Detector Device Seismic Detector Storage Huge Storage Unit Processor Advanced Visual Processing Unit Protection Reactive Plating Weapon Particle Cannon Energy Gun Small Laser Energy Cannon Particle Cannon Ballistic Gun Light Assault Rifle Launcher Scatter Rocket Array Impact Weapon Hammer Slashing Weapon Scimitar of Distortion Build | -11 -10 -10 -10 -8 -8 -8 ------- Run | Yrd Mat Min Sub Mat Sto Rec Slots Evolved 4 | . . . . 4 . . Power . | . . . . . . . Propulsion 2 | . . . . 2 . . Utility 2 | . . . . 2 . . Weapon . | . . . . . . . Parts Attached 74 | 7 14 3 8 18 20 4 Power 5 | 1 1 . . 1 2 . Engine 5 | 1 1 . . 1 2 . Core . | . . . . . . . Reactor . | . . . . . . . Propulsion 20 | 2 . . 2 12 4 . Treads 10 | 2 . . 2 5 1 . Leg 6 | . . . . 5 1 . Wheel . | . . . . . . . Hover 1 | . . . . 1 . . Flight 3 | . . . . 1 2 . Utility 26 | 2 6 2 4 4 5 3 Device 16 | 1 4 1 3 2 5 . Storage 4 | 1 1 1 . 1 . . Processor 1 | . . . . . . 1 Hackware . | . . . . . . . Protection 5 | . 1 . 1 1 . 2 Artifact . | . . . . . . . Weapon 23 | 2 7 1 2 1 9 1 Energy Gun 6 | 1 . . . . 5 . Energy Cannon 5 | . 4 . 1 . . . Ballistic Gun 5 | 1 1 . . . 2 1 Ballistic Cannon . | . . . . . . . Launcher 4 | . . 1 1 . 2 . Special Weapon . | . . . . . . . Impact Weapon 2 | . 2 . . . . . Slashing Weapon 1 | . . . . 1 . . Piercing Weapon . | . . . . . . . Special Melee Weapon . | . . . . . . . Unidentified Prototypes 15 | . 1 . . 3 11 . Parts Lost 23 | . 2 . 4 10 5 2 Power 3 | . 1 . 1 1 . . Propulsion 11 | . . . 2 7 1 1 Utility 6 | . 1 . 1 1 3 . Weapon 3 | . . . . 1 1 1 Highest Loss Streak 10 | . 1 . 1 10 3 1 To Critical Strikes . | . . . . . . . Average Backups 16 | . 10 16 23 16 10 10 Power . | . . . . . 1 1 Propulsion 3 | . . 3 4 3 4 1 Utility 5 | . 3 7 10 5 . 1 Weapon 6 | . 4 5 8 6 4 6 Tool/Special . | . . . . . . . Unused Backups 15 | . . 2 1 8 1 3 Power . | . . . . . . . Propulsion 2 | . . . . . 1 1 Utility 2 | . . 1 . 1 . . Weapon 10 | . . 1 1 6 . 2 Tool/Special 1 | . . . . 1 . . Average Slot Usage (%) 95 | . 98 100 95 77 88 97 Engine 10 | . 12 14 10 6 7 9 Treads 22 | . 28 28 27 19 3 3 Leg 6 | . . . . 10 29 32 Device 14 | . 12 14 12 17 20 12 Storage 12 | . 14 14 14 7 9 9 Protection 1 | . . . 1 1 . 11 Energy Gun 3 | . 6 . . . 8 7 Energy Cannon 16 | . 6 28 27 8 . . Ballistic Gun 4 | . 11 . . . 6 6 Peak Build Rating 52 | 7 20 22 19 44 52 45 Average Rating 18 | 5 8 13 15 35 39 39 On Entrance 18 | . 7 12 13 19 38 42 Avg Prop Armor Cover (%) 10 | . . . . 15 9 9 Naked Turns . | . . . . . . . Heaviest Build 106 | 13 34 92 103 106 32 50 Greatest Support 82 | 40 40 40 40 82 51 51 Greatest Overweight (x) 5 | . . 2 5 2 . 1 Average Overweight (x) . | . . 1 2 . . . Largest Inventory Capacity 27 | 8 15 25 27 27 12 12 Average Capacity 19 | 6 14 22 26 20 12 12 Most Carried 27 | 2 15 20 27 25 12 12 Average Carried 16 | . 10 16 24 16 11 11 Final Capacity 27 | 8 15 25 27 12 12 12 Final Carried 24 | 2 15 20 24 11 11 10 Class Distribution -------------------- 67% | Mutant 23% | Hauler-Mutant 9% | Scavenger-Mutant Dominant Class ---------------- Mutant | -10/Materials Mutant | -10/Mines Hauler-Mutant | -10/Subcaves Mutant | -8/Materials Scavenger-Mutant | -8/Storage Mutant | -8/Recycling Resources | -11 -10 -10 -10 -8 -8 -8 ----------- Run | Yrd Mat Min Sub Mat Sto Rec Matter Collected 2751 | 276 260 419 416 163 738 479 Remotely . | . . . . . . . Salvage Created 2584 | 58 511 47 569 217 804 378 Parts 158 | 6 47 5 27 23 34 16 Haulers Intercepted 2 | . . . . 1 1 . Recyclers Shooed . | . . . . . . . Parts Field Recycled . | . . . . . . . Retrieved Matter . | . . . . . . . Parts Self-Destructed 14 | . . . 14 . . . Prevented . | . . . . . . . Parts Restored . | . . . . . . . Kills | -11 -10 -10 -10 -8 -8 -8 ------- Run | Yrd Mat Min Sub Mat Sto Rec Combat Hostiles Destroyed 69 | . 15 4 17 6 16 11 Melee 6 | . . . . 2 4 . Guns 20 | . 10 . . . 7 3 Cannons 11 | . 5 1 5 . . . AOE 31 | . . 3 12 4 4 8 Classes Destroyed 14 | 1 5 . 2 4 1 1 Worker 2 | . . . . . 2 . Builder 4 | . 1 . . 1 2 . Tunneler 2 | 2 . . . . . . Hauler 2 | . . . . 1 1 . Operator 2 | . . . . 2 . . Watcher 2 | . 2 . . . . . Swarmer 13 | . 6 3 . 2 2 . Grunt 33 | . 8 1 11 1 12 . Duelist 1 | . . . . 1 . . Protector 1 | . . . . 1 . . Sentry 7 | . 1 . 1 1 2 2 Hunter 2 | . . . . . . 2 Artisan 1 | . . . 1 . . . Subdweller 12 | . . . 5 . . 7 Best Kill Streak 6 | 1 5 3 4 5 6 6 Combat Bots Only 6 | . 5 3 4 4 4 6 Max Kills in Single Turn 6 | 1 1 2 3 5 6 3 Gunslinging . | . . . . . . . Exploded 4 | . . 2 3 4 4 3 Melee 1 | . . . . 1 1 . Uniques/NPCs Destroyed . | . . . . . . . Combat | -11 -10 -10 -10 -8 -8 -8 -------- Run | Yrd Mat Min Sub Mat Sto Rec Hostile Shots Fired 441 | . 71 8 67 94 138 63 Missed 119 | . 15 3 20 23 33 25 Hits 322 | . 56 5 47 71 105 38 Melee 36 | . . . . 1 35 . Projectile 286 | . 56 5 47 70 70 38 Critical Strikes 8 | . . . 1 2 3 2 Damage Taken 4700 | . 519 62 789 1504 1151 675 Core 776 | . 69 39 105 202 240 121 Absorbed by Shields 93 | . . . . . 93 . Ignored by Resistances 51 | . . . 6 . . 45 Core Remaining (%) 90 | 100 . . 80 . . . Volleys Fired 193 | 6 42 5 35 5 82 18 Largest 2 | 2 2 2 2 2 2 2 Hottest 148 | 60 136 136 148 148 124 116 Shots Fired 321 | 12 84 8 59 9 119 30 Gun 209 | 12 56 . . . 117 24 Cannon 89 | . 28 6 47 8 . . Launcher 23 | . . 2 12 1 2 6 Special . | . . . . . . . Kinetic 123 | 6 34 . 8 1 54 20 Thermal 184 | 6 50 6 47 8 63 4 Explosive 14 | . . 2 4 . 2 6 Electromagnetic . | . . . . . . . Robot Hit Streak 19 | 11 14 8 7 4 19 5 Robot Miss Streak 9 | . 5 . 2 3 9 9 Penetration Max . | . . . . . . . Secondary Targets 4 | . 4 . . . . . Max Gunslinging Chain 1 | . 1 . . . . . Shots Hit Robots 189 | 11 52 5 30 15 58 18 Core Hits 144 | 5 27 4 28 11 44 25 Critical Kills 2 | . . . . 1 . 1 Critical Parts Destroyed . | . . . . . . . Critical Strikes 4 | . . . . 1 1 2 Burn 1 | . . . . . 1 . Meltdown 1 | . . . . 1 . . Destroy 2 | . . . . . . 2 Melee Attacks 15 | . 2 . . 8 5 . Impact 2 | . 2 . . . . . Slashing 13 | . . . . 8 5 . Piercing . | . . . . . . . Sneak Attacks 3 | . . . . 3 . . Combat Hostiles . | . . . . . . . Follow-up Attacks . | . . . . . . . Damage Inflicted 6878 | 104 633 357 1773 997 1557 1457 Guns 1736 | 104 382 . . . 1001 249 Cannons 1069 | . 249 101 586 133 . . Explosions 3495 | . . 253 1187 448 399 1208 Melee 565 | . . . . 416 149 . Ramming 13 | . 2 3 . . 8 . Kinetic 1925 | 38 175 . 895 216 390 211 Thermal 1991 | 66 456 101 586 133 611 38 Explosive 2384 | . . 253 292 232 399 1208 Electromagnetic . | . . . . . . . Impact . | . . . . . . . Slashing 565 | . . . . 416 149 . Piercing . | . . . . . . . Highest Corruption 12 | . . 11 12 . 12 12 Average Corruption 9 | . . 11 8 . 12 12 Corruption Purged 4 | . . . 4 . . . Corruption Blocked . | . . . . . . . Effects 143 | . . 5 79 . 32 27 Message Errors 38 | . . 3 23 . 5 7 Matter Fused 30 | . . 2 15 . 8 5 Heat Flow Errors 21 | . . . 12 . 6 3 Energy Discharges 19 | . . . 13 . 2 4 Parts Rejected 2 | . . . 1 . . 1 Parts Fused 1 | . . . 1 . . . Data Loss (minor) 10 | . . . 4 . 2 4 Data Loss (major) 6 | . . . 4 . . 2 Misfires 7 | . . . 4 . 3 . Alerts 2 | . . . 2 . . . Misdirections 1 | . . . . . . 1 Weapon Failures 6 | . . . . . 6 . Overload Shots . | . . . . . . . Overflow Damage 280 | . 13 41 9 215 . 2 Projectiles 13 | . 13 . . . . . Explosions 88 | . . 41 9 36 . 2 Melee 179 | . . . . 179 . . Knockbacks . | . . . . . . . Impact . | . . . . . . . Kinetic . | . . . . . . . Secondary . | . . . . . . . Self-Inflicted Damage 345 | . . . 69 148 54 74 Shots 13 | . . . 4 2 3 4 Rammed 2 | . 1 1 . . . . Targets Rammed 3 | . 1 1 . . 1 . Kicked 1 | . . . . . 1 . Crushed . | . . . . . . . Highest Temperature 431 | 40 225 255 276 90 431 262 Average Temperature 87 | 19 67 127 73 37 124 77 Received Heat Transfer 1524 | . 129 30 255 423 519 168 Effects 1 | . . . . . 1 . Energy Bleed 1 | . . . . . 1 . Siege Activations . | . . . . . . . Martial Activations . | . . . . . . . Shielding Activations . | . . . . . . . Robots Disrupted . | . . . . . . . Combat Hostiles . | . . . . . . . Robots Corrupted . | . . . . . . . Combat Hostiles . | . . . . . . . Parts Fried . | . . . . . . . Impact Corruptions . | . . . . . . . Robots Melted 2 | . . . . 1 1 . Combat Hostiles 1 | . . . . . 1 . Parts Melted 9 | . 1 . 2 1 4 1 Heat Transferred 3827 | 150 919 185 1036 205 1258 74 Parts Sabotaged . | . . . . . . . Parts Stolen 5 | . . . . . 5 . Parts Stripped . | . . . . . . . Power Chain Reactions . | . . . . . . . Alert | -11 -10 -10 -10 -8 -8 -8 ------- Run | Yrd Mat Min Sub Mat Sto Rec Maximum Alert Level 2 | . . . . 1 2 2 Low Security (%) 81 | 100 100 100 . 70 36 54 Level 1 8 | . . . . 29 19 27 Level 2 9 | . . . . . 44 18 Level 3 . | . . . . . . . Level 4 . | . . . . . . . Level 5 . | . . . . . . . High Security . | . . . . . . . Max Security . | . . . . . . . Sterilizations 1 | . . . . 1 . . Peak Influence 491 | 5 106 109 . 238 491 432 Initial 126 | . . 25 . 84 83 126 Average 105 | . 32 20 . 121 299 243 Influence Increases 2628 | 10 447 209 265 364 780 553 Destroy 0b10 Robot/C 1260 | . 300 140 240 100 400 80 Destroy 0b10 Robot/NC 75 | 10 15 . . 25 25 . Destroy Leader 198 | . 44 30 10 32 82 . Allied During Kill 29 | . 1 17 . . 11 . Successful Hack 47 | . 25 . . 8 7 7 Select Force Hacks 120 | . 60 . . . . 60 Disable Machine 120 | . . . . 45 60 15 Destroy Structure 195 | . 2 22 . 19 60 92 Partial Spotted 15 | . . . . . 15 . Lose Combat Pursuer 285 | . . . 15 135 120 15 Miscellaneous 284 | . . . . . . 284 Influence Decreases 2263 | 10 381 208 169 329 653 513 Entered New Map 469 | . . 41 35 79 115 199 Time Decay 1394 | 10 361 147 114 150 318 294 Lost Part 210 | . 20 . 20 100 50 20 Lost Ally 40 | . . 20 . . 20 . Purge Threat 150 | . . . . . 150 . Squads Dispatched 12 | . 7 . . 3 2 . Investigation 7 | . 6 . . . 1 . Extermination . | . . . . . . . Reinforcement 4 | . 1 . . 2 1 . Assault 1 | . . . . 1 . . Garrison . | . . . . . . . Intercept . | . . . . . . . Searches Triggered . | . . . . . . . Construction Impeded . | . . . . . . . Haulers Reinforced . | . . . . . . . Active Scanning Responses . | . . . . . . . Cargo Convoy Interrupts . | . . . . . . . Stealth | -11 -10 -10 -10 -8 -8 -8 --------- Run | Yrd Mat Min Sub Mat Sto Rec Distress Signals 5 | . . . . . 3 2 Communications Jammed . | . . . . . . . Distress Signals . | . . . . . . . Times Spotted 114 | . 20 7 18 30 24 15 Peak Tracking Total 13 | . 5 3 4 13 5 7 Tactical Retreats 10 | . . . 2 2 4 2 Traps | -11 -10 -10 -10 -8 -8 -8 ------- Run | Yrd Mat Min Sub Mat Sto Rec Traps Triggered 5 | . 3 . 1 . 1 . Indirectly . | . . . . . . . Trap Hack Attempts . | . . . . . . . Triggered . | . . . . . . . Disarmed . | . . . . . . . Reprogrammed . | . . . . . . . Reused . | . . . . . . . Traps Extracted . | . . . . . . . Installed . | . . . . . . . Triggered . | . . . . . . . Machines | -11 -10 -10 -10 -8 -8 -8 ---------- Run | Yrd Mat Min Sub Mat Sto Rec Machines Disabled 8 | . . . . 3 4 1 Max in Single Turn 3 | . . . . 3 2 1 Machines Repaired . | . . . . . . . Machines Dismantled . | . . . . . . . Machines Sabotaged . | . . . . . . . Overloaded Fab Kills . | . . . . . . . Hacking | -11 -10 -10 -10 -8 -8 -8 --------- Run | Yrd Mat Min Sub Mat Sto Rec Machines Accessed 19 | . 9 . 1 2 2 5 Terminals 14 | . 7 . . 2 2 3 Fabricators . | . . . . . . . Repair Stations . | . . . . . . . Recycling Units 4 | . 2 . . . . 2 Scanalyzers . | . . . . . . . Garrison Access . | . . . . . . . Total Hacks 62 | . 31 . 9 7 4 11 Successful 39 | . 17 . 9 4 2 7 Failed 22 | . 13 . . 3 2 4 Catastrophic . | . . . . . . . Database Lockouts 1 | . 1 . . . . . Manual 33 | . 17 . . 4 4 8 Terminals 41 | . 25 . . 7 4 5 Fabricators . | . . . . . . . Repair Stations . | . . . . . . . Recycling Units 12 | . 6 . . . . 6 Scanalyzers . | . . . . . . . Garrison Access . | . . . . . . . Terminal Hacks 21 | . 6 . 9 4 2 . Record 8 | . . . 8 . . . Robot Schematic 1 | . 1 . . . . . Robot Analysis 1 | . 1 . . . . . Open Door 1 | . . . . . 1 . Branch Access Points 1 | . . . . 1 . . Alert Level 1 | . . . . 1 . . Unreport Threat 2 | . . . . 1 1 . Patrol Status 1 | . 1 . . . . . Hauler Manifests 2 | . 2 . . . . . Zone Layout 2 | . 1 . . 1 . . Proto ID Catalog 1 | . . . 1 . . . Fabricator Hacks . | . . . . . . . Repair Station Hacks . | . . . . . . . Recycling Unit Hacks 4 | . 2 . . . . 2 Retrieve Components 4 | . 2 . . . . 2 Scanalyzer . | . . . . . . . Garrison Access Hacks . | . . . . . . . Unauthorized Hacks 14 | . 9 . . . . 5 Terminals 10 | . 7 . . . . 3 Track 2 | . . . . . . 2 Botnet 2 | . 1 . . . . 1 Operators 1 | . 1 . . . . . Skim 5 | . 5 . . . . . Fabricators . | . . . . . . . Repair Stations . | . . . . . . . Recycling Units 4 | . 2 . . . . 2 Tunnel 4 | . 2 . . . . 2 Scanalyzers . | . . . . . . . Garrison Access . | . . . . . . . Data Cores Recovered 1 | . . . . 1 . . Used 1 | . . . . 1 . . Hacking Detections 12 | . 7 . . 1 1 3 Full Trace Events 1 | . 1 . . . . . Feedback Events . | . . . . . . . Feedback Blocked . | . . . . . . . Robot Schematics Acquired 1 | . 1 . . . . . Robots Built . | . . . . . . . Authchips . | . . . . . . . Time . | . . . . . . . Total Robot Build Rating . | . . . . . . . Part Schematics Acquired . | . . . . . . . Parts Built . | . . . . . . . Authchips . | . . . . . . . Time . | . . . . . . . Total Part Build Rating . | . . . . . . . Part Studies Acquired . | . . . . . . . Parts Repaired . | . . . . . . . Time . | . . . . . . . Parts Recycled . | . . . . . . . Recycled Matter . | . . . . . . . Retrieved Matter . | . . . . . . . Retrieved Components 19 | . 19 . . . . . Parts Scanalyzed . | . . . . . . . Part Schematics Acquired . | . . . . . . . Parts Damaged . | . . . . . . . Bothacking | -11 -10 -10 -10 -8 -8 -8 ------------ Run | Yrd Mat Min Sub Mat Sto Rec Used RIF Installer . | . . . . . . . Robots Hacked . | . . . . . . . Non-combat . | . . . . . . . Combat . | . . . . . . . Robot Hacks Applied . | . . . . . . . Relay Couplers Released . | . . . . . . . Fabnet Peak Effective % . | . . . . . . . Robots Rewired . | . . . . . . . Allies Hacked . | . . . . . . . Hacks Repelled . | . . . . . . . Allies | -11 -10 -10 -10 -8 -8 -8 -------- Run | Yrd Mat Min Sub Mat Sto Rec Total Allies 5 | . 1 3 . . 1 . Largest Group 3 | . 1 3 1 . 1 . Highest-Rated Group 142 | . 5 40 16 . 142 . Highest-Rated Ally 142 | . 5 16 16 . 142 . Total Orders . | . . . . . . . Ally Attacks 33 | . . 22 . . 11 . Total Damage 734 | . . 229 . . 505 . Kills 7 | . . 3 . . 4 . Allies Corrupted . | . . . . . . . Allies Melted . | . . . . . . . X0-1V1 Amusement Gains 51 | . 7 . . 4 40 . Average Entertainment 23 | . 7 2 . 20 58 44 Good Acts 51 | . 15 3 19 9 3 2 Bad Acts 60 | . 8 2 22 10 7 11 Intel | -11 -10 -10 -10 -8 -8 -8 ------- Run | Yrd Mat Min Sub Mat Sto Rec Active Infowar (turns) 4745 | 14 1227 863 1715 121 413 392 Optics 142 | . . . . . . 142 Terrain 33 | . 33 . . . . . Structural 784 | . . . . 121 413 250 Seismic 3787 | 14 1194 863 1715 1 . . Robot Analysis Total 1 | . 1 . . . . . Derelict Logs Recovered 2 | . . 2 . . . . Drone Launches . | . . . . . . . Drone Recoveries . | . . . . . . . Exploration | -11 -10 -10 -10 -8 -8 -8 ------------- Run | Yrd Mat Min Sub Mat Sto Rec Turns Passed 7035 | 112 1740 1098 2420 304 702 659 Spaces Moved 3083 | 53 903 411 704 177 340 495 Core 5 | 3 . . . 2 . . Treads 2123 | 50 903 411 704 55 . . Legs 916 | . . . . 81 340 495 Wheels . | . . . . . . . Hover . | . . . . . . . Flight 39 | . . . . 39 . . Fastest Speed 35 | 50 160 160 320 35 90 90 Average Speed 189 | 153 160 254 320 126 92 94 Slowest Speed 560 | 160 160 320 560 312 97 183 Overloaded Moves . | . . . . . . . Propulsion Burnouts . | . . . . . . . Robots Hopped . | . . . . . . . Potential Cave-ins 2 | . . . . . . 2 Cave-ins Triggered . | . . . . . . . Exploration Rate (%) 54 | 4 98 83 53 27 44 71 Regions Visited 6 Branch Regions 4 Pre-discovered Areas 6 | . 3 . 1 . . 2 Known Exits Taken 4 | . . 1 1 1 1 . Unknown Exits Taken 2 | 1 1 . . . . . Scrap Searched 6 | . . 1 5 . . . Spaces Dug 2 | . 2 . . . . . Terrain Destroyed 374 | . 2 29 113 22 55 153 Melee 2 | . 2 . . . . . Projectile 4 | . . . 2 2 . . AOE 368 | . . 29 111 20 55 153 Terrain Rammed . | . . . . . . . Walls Destroyed . | . . . . . . . Machines Disabled . | . . . . . . . Actions | -11 -10 -10 -10 -8 -8 -8 --------- Run | Yrd Mat Min Sub Mat Sto Rec Total 3938 | 69 1110 458 809 232 606 654 Wait 425 | 2 125 21 33 1 116 127 Move 3077 | 52 902 410 703 176 339 495 Hop . | . . . . . . . Pick Up 61 | 2 15 10 11 9 13 1 Fast Attach 32 | 7 . . 1 8 13 3 Attach 31 | . 3 1 5 10 10 2 Detach 15 | . 1 1 2 5 4 2 Swap 59 | . 17 4 16 7 10 5 Drop 27 | . 2 5 3 3 13 1 Fire 193 | 6 42 5 35 5 82 18 Melee 15 | . 2 . . 8 5 . Ram . | . . . . . . . Kick 1 | . . . . . 1 . Crush 2 | . 1 1 . . . . Escape Stasis . | . . . . . . . Rewire . | . . . . . . . Trap . | . . . . . . . Miscellaneous . | . . . . . . . Route ------- -11/Scrapyard -10/Materials (discovered 5 exits: *Mat x3 / [*Min] / *Sub) -10/Mines (discovered 3 exits: *Mat x2 / *Sub) -10/Subcaves (discovered 2 exits: *Mat / Rec) -8/Materials (discovered 3 exits: *Fac x2 / *Sto) -8/Storage (discovered 2 exits: Fac / *Rec) -8/Recycling History --------- Turn | Location | Event 4 | -11/Scrapyard | Discovered new exit (range 16) 113 | -11/Scrapyard | Entered Materials 315 | -10/Materials | Build established: Mutant 322 | -10/Materials | Discovered new exit (range 4) 355 | -10/Materials | Discovered new exit (range 15) 697 | -10/Materials | Discovered new exit (range 15) 698 | -10/Materials | Central database locked down 868 | -10/Materials | Discovered new exit (range 13) 994 | -10/Materials | Prayed at D.C.S.S. Altar Unit 1096 | -10/Materials | Matter capacity permanently improved by X0-1V1 (+200; -100 max core) 1154 | -10/Materials | Discovered new exit (range 16) 1246 | -10/Materials | Sensors blinded by X0-1V1 1275 | -10/Materials | X0-1V1 foreshadows a heat wave 1287 | -10/Materials | X0-1V1 put everyone to sleep 1294 | -10/Materials | X0-1V1 vaporized surrounding terrain (radius 20) 1298 | -10/Materials | Learned location of 1 exit from Storage 1303 | -10/Materials | X0-1V1 sent you into danger 1321 | -10/Materials | X0-1V1 turns hostiles against one another 1346 | -10/Materials | Learned location of Recycling (-8) 1449 | -10/Materials | Identified exit to Materials 1506 | -10/Materials | Ambient heat levels rising (+10) 1542 | -10/Materials | X0-1V1 caused items to flee you 1610 | -10/Materials | X0-1V1 sent you into danger 1729 | -10/Materials | X0-1V1 activates XOMVISION 1778 | -10/Materials | Ambient heat levels rising (+10) 1814 | -10/Materials | Items stopped fleeing you 1853 | -10/Materials | Entered Mines 1854 | -10/Mines | Identified exit to Subcaves 1872 | -10/Mines | Met a Derelict bent on vengeance 1882 | -10/Mines | Joined a pair of Derelicts in attacking an 0b10 outpost 1934 | -10/Mines | Core integrity permanently improved by X0-1V1 (+300) 1953 | -10/Mines | Assisted by bots powering up and referring to "LRC-V3" 2017 | -10/Mines | Discovered exit to Materials (range 16) 2362 | -10/Mines | Received a Rocket Launcher from a helpful Derelict 2413 | -10/Mines | Learned Materials security intel 2419 | -10/Mines | Deemed a non-threat by the Exiles lab entrance 2801 | -10/Mines | System corruption reached 10% 2951 | -10/Mines | Entered Subcaves 2951 | -10/Subcaves | Accompanied by 1 ally 2952 | -10/Subcaves | Approached by a straggling Scientist 3161 | -10/Subcaves | Visited 4L-MR0's lab 3374 | -10/Subcaves | Disturbed a concealed Subdweller 3728 | -10/Subcaves | Learned location of Zion (-7) 3728 | -10/Subcaves | Met a Zionite searching for "candidates" 3874 | -10/Subcaves | Inventory capacity permanently improved by X0-1V1 (+2; -200 max core) 4164 | -10/Subcaves | Build established: Hauler-Mutant 4410 | -10/Subcaves | A Subdweller sparked back to life 4463 | -10/Subcaves | Found Cargo Legs 4650 | -10/Subcaves | Shifting Twisted Machinery released Shrapnel Trap 4709 | -10/Subcaves | Shifting Twisted Machinery released Mak. Light Armor Plating 4763 | -10/Subcaves | Sensors blinded by X0-1V1 4802 | -10/Subcaves | Discovered new exit (range 14) 4818 | -10/Subcaves | X0-1V1 sent hostile G-34 Mercenary (x4) 4890 | -10/Subcaves | X0-1V1 tapped a No Entrance sign 4935 | -10/Subcaves | X0-1V1 caused items to flee you 4951 | -10/Subcaves | Identified exit to Recycling 4951 | -10/Subcaves | X0-1V1 revealed exit location to -8/Recycling 4974 | -10/Subcaves | X0-1V1 sent hostile G-34 Mercenary (x3) 5122 | -10/Subcaves | Identified exit to Materials 5122 | -10/Subcaves | X0-1V1 revealed exit location to -8/Materials 5161 | -10/Subcaves | X0-1V1 sent hostile G-34 Mercenary (x3) 5176 | -10/Subcaves | Core integrity restored by X0-1V1 (+37) 5259 | -10/Subcaves | X0-1V1 sent you into danger 5304 | -10/Subcaves | Items stopped fleeing you 5371 | -10/Subcaves | Entered Materials 5371 | -8/Materials | Evolved 4 slots: Propulsion x2, Utility x2 5374 | -8/Materials | X0-1V1 made a cryptic comment about sterilization and BL-4Z3 5377 | -8/Materials | X0-1V1 released a cloud of subatomizers 5397 | -8/Materials | Identified exit to Factory 5397 | -8/Materials | X0-1V1 revealed exit location to -7/Factory 5400 | -8/Materials | X0-1V1 sent you to a vault 5407 | -8/Materials | Found Prototype Slashing Weapon 5407 | -8/Materials | Identified Scimitar of Distortion 5415 | -8/Materials | X0-1V1 announced a LAN party 5428 | -8/Materials | X0-1V1 put everyone to sleep 5434 | -8/Materials | Discovered exit to Factory (range 3) 5445 | -8/Materials | X0-1V1 redirected Transport squads to designated parking area 5474 | -8/Materials | X0-1V1 vaporized surrounding terrain (radius 17) 5488 | -8/Materials | X0-1V1 activates XOMVISION 5520 | -8/Materials | Identified exit to Storage 5547 | -8/Materials | Sterilization system engaged 5547 | -8/Materials | Non-combat units ordered to evacuate 5588 | -8/Materials | Lost 10 parts (1p7n1u1w) 5647 | -8/Materials | Combat units ordered to evacuate 5675 | -8/Materials | Entered Storage 5704 | -8/Storage | Found Prototype Launcher 5705 | -8/Storage | Identified Scatter Rocket Array 5737 | -8/Storage | System corruption reached 10% 5756 | -8/Storage | Core integrity fell below 50% 5801 | -8/Storage | Lost 3 parts (2u1w) 5919 | -8/Storage | Imp. Titanium Leg reconfigured into Item Mimic 5949 | -8/Storage | X0-1V1 sent allied H-71 Marshal (x1) 6288 | -8/Storage | Core integrity fell below 20% 6313 | -8/Storage | Build established: Scavenger-Mutant 6374 | -8/Storage | Used back door to open Recycling access 6374 | -8/Storage | Discovered exit to Recycling (range 4) 6377 | -8/Storage | Entered Recycling 6572 | -8/Recycling | X0-1V1 sent hostile H-55 Commando (x3) 6733 | -8/Recycling | X0-1V1 added 0b10 threat records associated with you (major) 6745 | -8/Recycling | X0-1V1 vaporized surrounding terrain (radius 22) 6915 | -8/Recycling | Build established: Mutant 6969 | -8/Recycling | X0-1V1 whisked you away to safety 6971 | -8/Recycling | X0-1V1 vaporized surrounding terrain (radius 22) 7036 | -8/Recycling | Destroyed by Y-45 Defender with Beam Rifle Last Messages --------------- 06935_ Atomic Centrifuge disabled. 06942_ Your Reactive Plating, Hvy. Ion Engine briefly glow, restoring some integrity. 06945_ System corrupted: Matter fused (-10). 06962_ System corrupted: Heat flow error (+177). 06966_ Sight range returns to normal. 06969_ X0-1V1: "You need a change of scenery." Surrounding terrain vaporized. 06971_ X0-1V1: "Learned that one from the Sigix." 06977_ Acquired 33 matter. 06993_ The unstable cave ceiling collapses. 07007_ #RDHKHDMQNKC